bitfinex-derivatives/quotes_SOLF0:USTF0_20250111
["timestamp","ask_amount","ask_price","bid_price","bid_amount"]
[1736557360122,2.6549,188.36,188.26,17.49804363]
[1736557361020,17.49804363,188.36,188.03,29.1727879]
[1736557361345,17.49804363,188.39,188.21,17.49804363]
[1736557361620,2.6557,188.3,188.18,8.6573]
[1736557361825,17.49804363,188.36,188.19,17.49804363]
[1736557362525,2.6556,188.31,188.19,17.49804363]
[1736557362727,17.49804363,188.33,188.19,17.49804363]
[1736557362926,1.5304,188.32,188.19,17.49804363]
[1736557363126,1.5304,188.32,188.11,3.153]
[1736557363127,2.6562,188.27,188.14,2.6579]
[1736557363429,17.49804363,188.25,188.07,17.49804363]
[1736557363636,17.49804363,188.25,188.1,17.49804363]
[1736557364030,2.6566,188.24,188.1,23.65804363]
[1736557364226,7.9736,188.24,188.1,23.65804363]
[1736557364530,2.6566,188.24,188.1,23.65804363]
[1736557364831,17.49804363,188.28,188.13,20.15604363]
[1736557365026,5.317,188.3,188.16,17.49804363]
[1736557365527,2.6566,188.24,188.16,17.49804363]
[1736557366027,17.49804363,188.25,187.96,55.05280741]
[1736557366229,17.49804363,188.25,188.08,17.49804363]
[1736557366730,5.317,188.24,188.08,17.49804363]
[1736557367131,2.6573,188.19,188.08,20.15674363]
[1736557368842,2.657,188.21,188.11,17.49804363]
[1736557369034,20.63564363,188.31,188.14,17.49804363]
[1736557369332,20.63564363,188.31,188.15,1.6711]
[1736557369933,5.317,188.3,188.15,1.6711]
[1736557370134,2.6565,188.25,188.15,1.6711]
[1736557370331,3.1376,188.31,188.2,17.49804363]
[1736557370535,17.49804363,188.37,188.23,17.49804363]
[1736557370733,2.6553,188.33,188.23,17.49804363]
[1736557370957,17.49804363,188.43,188.26,17.49804363]
[1736557371331,17.49804363,188.43,188.27,1.62]
[1736557371531,2.6549,188.36,188.27,1.62]
[1736557371732,4.6698,188.44,188.32,17.49804363]
[1736557372236,2.6538,188.44,188.32,20.15334363]
[1736557372437,5.317,188.48,188.35,17.49804363]
[1736557372936,2.6534,188.47,188.38,17.49804363]
[1736557373633,3.1135,188.5,188.38,17.49804363]
[1736557373837,2.6535,188.46,188.38,17.49804363]
[1736557375436,2.6535,188.46,188.37,28.49050295]
[1736557376235,31.60400295,188.5,188.37,28.49050295]
[1736557376434,28.49050295,188.47,188.36,1.6142]
[1736557376635,28.49050295,188.47,188.31,28.49050295]
[1736557376939,28.49050295,188.47,188.31,30.10500295]
[1736557377336,2.6543,188.41,188.31,30.10500295]
[1736557377533,3.1135,188.5,188.34,28.49050295]
[1736557377534,31.60400295,188.5,188.34,28.49050295]
[1736557377739,3.1135,188.5,188.37,28.49050295]
[1736557378935,2.6537,188.45,188.37,28.49050295]
[1736557379141,3.1135,188.5,188.37,28.49050295]
[1736557379349,3.1135,188.5,188.34,28.49050295]
[1736557379537,5.317,188.49,188.34,28.49050295]
[1736557379741,5.317,188.49,188.31,1.6145]
[1736557380037,5.317,188.49,188.33,28.49050295]
[1736557380232,5.317,188.47,188.33,28.49050295]
[1736557380439,8.4305,188.5,188.36,28.49050295]
[1736557380636,3.1135,188.5,188.39,28.49050295]
[1736557380832,2.6536,188.45,188.39,28.49050295]
[1736557381460,8.4305,188.5,188.39,28.49050295]
[1736557381640,2.6535,188.46,188.39,28.49050295]
[1736557382643,2.6536,188.45,188.39,28.49050295]
[1736557384250,8.4305,188.5,188.36,28.49050295]
[1736557384448,5.317,188.48,188.33,6.1]
[1736557384846,2.6543,188.4,188.33,6.1]
[1736557385048,5.317,188.48,188.33,6.1]
[1736557385746,2.6542,188.41,188.33,8.7552]
[1736557385947,5.317,188.48,188.33,6.1]
[1736557386143,5.317,188.48,188.31,1.6145]
[1736557386340,2.6545,188.39,188.31,4.2699]
[1736557387050,2.6546,188.38,188.31,4.2699]
[1736557387546,5.317,188.45,188.31,1.6145]
[1736557387782,2.6541,188.42,188.31,1.6145]
[1736557387948,28.49050295,188.46,188.31,1.6145]
[1736557387949,1.6585,188.44,188.31,1.6145]
[1736557388342,2.6548,188.37,188.31,1.6145]
[1736557389047,2.6548,188.36,188.31,1.6145]
[1736557389345,1.6585,188.44,188.31,1.6145]
[1736557389541,5.317,188.43,188.31,1.6145]
[1736557389743,2.655,188.36,188.31,1.6145]
[1736557390439,2.655,188.35,188.31,1.6145]
[1736557393244,1.6585,188.44,188.31,1.6145]
[1736557393439,5.317,188.43,188.28,30.13260295]
[1736557393640,1.6585,188.44,188.28,30.13260295]
[1736557394446,5.317,188.42,188.28,28.49050295]
[1736557394644,28.49050295,188.43,188.28,28.49050295]
[1736557395177,2.6555,188.32,188.28,28.49050295]
[1736557395356,2.6555,188.32,188.26,23.59403706]
[1736557395647,2.6555,188.32,188.26,17.55403706]
[1736557397051,5.317,188.4,188.26,17.55403706]
[1736557397281,2.6556,188.31,188.26,17.55403706]
[1736557398847,2.6549,188.36,188.26,20.21023706]
[1736557399150,8.4762,188.41,188.26,20.21023706]
[1736557400346,2.6554,188.32,188.26,20.21023706]
[1736557400547,3.1592,188.41,188.26,17.55403706]
[1736557400748,17.55403706,188.39,188.22,19.14673706]
[1736557401054,2.6563,188.26,188.22,19.14673706]
[1736557402654,7.9722,188.34,188.22,19.14673706]
[1736557402953,21.267,188.38,188.22,17.55403706]
[1736557404142,2.6566,188.24,188.22,17.55403706]
[1736557404348,5.317,188.38,188.22,17.55403706]
[1736557404750,2.656,188.28,188.22,20.21073706]
[1736557405445,2.6561,188.27,188.22,20.21073706]
[1736557407351,2.6558,188.3,188.23,2.6565]
[1736557407543,17.55403706,188.39,188.23,2.6565]
[1736557408251,2.656,188.28,188.22,17.55403706]
[1736557408450,2.656,188.28,188.22,20.21083706]
[1736557409053,2.6563,188.26,188.22,17.55403706]
[1736557409254,5.317,188.38,188.22,17.55403706]
[1736557409455,17.55403706,188.36,188.22,17.55403706]
[1736557409654,2.6556,188.31,188.22,17.55403706]
[1736557409854,5.317,188.34,188.22,17.55403706]
[1736557410253,2.6563,188.26,188.22,17.55403706]
[1736557410657,5.317,188.34,188.2,1.6296]
[1736557411053,2.6567,188.23,188.2,1.6296]
[1736557412149,2.6569,188.22,188.2,1.6296]
[1736557412457,2.6569,188.22,188.16,23.49403706]
[1736557412661,2.6569,188.22,188.16,17.55403706]
[1736557412859,2.6571,188.21,188.16,17.55403706]
[1736557413059,8.5231,188.32,188.16,17.55403706]
[1736557413263,3.2061,188.32,188.16,17.55403706]
[1736557413460,2.6575,188.18,188.14,1.5242]
[1736557413853,17.55403706,188.3,188.14,1.5242]
[1736557414168,2.6576,188.17,188.14,1.5242]
[1736557414566,2.6574,188.18,188.14,1.5242]
[1736557416363,5.317,188.29,188.14,1.5242]
[1736557416569,5.317,188.26,188.1,17.55403706]
[1736557416772,5.317,188.24,188.1,17.55403706]
[1736557416965,2.6579,188.15,188.1,17.55403706]
[1736557417165,3.2222,188.23,188.1,17.55403706]
[1736557417872,8.5392,188.23,188.1,17.55403706]
[1736557418069,2.6578,188.16,188.11,2.6584]
[1736557418572,8.5392,188.23,188.1,17.55403706]
[1736557418776,2.658,188.14,188.1,17.55403706]
[1736557419876,2.6581,188.13,188.1,17.55403706]
[1736557420773,2.6578,188.15,188.11,2.6583]
[1736557423265,3.2222,188.23,188.11,2.6583]
[1736557423469,2.658,188.14,188.11,2.6583]
[1736557424467,339.06991307,188.35,188.13,17.55403706]
[1736557424672,339.06991307,188.35,188.1,17.55403706]
[1736557424673,4.8297,188.31,188.2,17.55403706]
[1736557425083,2.6569,188.22,188.2,17.55403706]
[1736557425780,2.6567,188.24,188.2,17.55403706]
[1736557426473,3.2136,188.31,188.23,17.55403706]
[1736557426679,2.6558,188.29,188.24,2.6565]
[1736557427074,4.7218,188.37,188.26,17.55403706]
[1736557427275,2.6554,188.33,188.27,2.6561]
[1736557427478,4.7218,188.37,188.29,17.55403706]
[1736557427680,3.1457,188.37,188.29,17.55403706]
[1736557427878,1.5527,188.37,188.29,17.55403706]
[1736557428079,2.6551,188.34,188.29,17.55403706]
[1736557428280,1.5527,188.37,188.33,17.55403706]
[1736557428483,3.2485,188.44,188.33,17.55403706]
[1736557428683,1.5527,188.43,188.33,17.55403706]
[1736557430181,2.6549,188.36,188.33,17.55403706]
[1736557430982,2.6549,188.36,188.29,20.20973706]
[1736557432780,2.6541,188.42,188.35,20.20903706]
[1736557432980,3.2405,188.47,188.32,17.55403706]
[1736557433188,19.10043706,188.46,188.32,17.55403706]
[1736557434285,2.6549,188.36,188.32,17.55403706]
[1736557434488,19.10043706,188.46,188.32,17.55403706]
[1736557434786,1.5464,188.46,188.32,17.55403706]
[1736557435291,2.6544,188.39,188.32,20.20933706]
[1736557435593,2.6544,188.39,188.33,2.6552]
[1736557436184,2.6543,188.4,188.33,2.6552]
[1736557436490,2.6543,188.4,188.35,17.55403706]
[1736557436687,2.654,188.43,188.35,17.55403706]
[1736557436887,2.654,188.43,188.38,17.55403706]
[1736557437084,1.5464,188.46,188.38,17.55403706]
[1736557437285,2.654,188.43,188.38,17.55403706]
[1736557438395,3.2405,188.47,188.38,17.55403706]
[1736557438591,2.6538,188.44,188.38,20.20853706]
[1736557439201,2.6533,188.47,188.41,17.55403706]
[1736557439996,2.6533,188.47,188.41,20.20813706]
[1736557440296,3.1977,188.53,188.41,17.55403706]
[1736557440695,8.5147,188.53,188.41,17.55403706]
[1736557440996,2.6535,188.46,188.41,17.55403706]
[1736557441392,3.1977,188.53,188.41,17.55403706]
[1736557441599,1.6386,188.53,188.47,17.55403706]
[1736557441902,1.5147,188.54,188.47,17.55403706]
[1736557442097,2.6526,188.52,188.47,17.55403706]
[1736557442694,6.05824536,188.55,188.47,17.55403706]
[1736557442894,2.6525,188.53,188.47,20.20733706]
[1736557443090,82.9,188.58,188.47,17.55403706]
[1736557443291,82.9,188.58,188.44,17.55403706]
[1736557443989,5.317,188.57,188.44,17.55403706]
[1736557444390,2.6523,188.54,188.44,20.20773706]
[1736557444593,82.9,188.58,188.42,5.82]
[1736557444594,82.9,188.58,188.47,17.55403706]
[1736557444902,82.9,188.58,188.5,17.55403706]
[1736557445098,82.9,188.58,188.47,17.55403706]
[1736557446301,2.6529,188.51,188.47,17.55403706]
[1736557447604,82.9,188.58,188.47,17.55403706]
[1736557447803,2.6529,188.5,188.47,17.55403706]
[1736557447998,82.9,188.58,188.47,17.55403706]
[1736557448200,5.317,188.54,188.38,4.7001]
[1736557448404,2.654,188.42,188.38,4.7001]
[1736557448600,2.654,188.42,188.38,3.0416]
[1736557449499,2.6542,188.41,188.38,3.0416]
[1736557450005,5.317,188.51,188.37,17.55403706]
[1736557450204,4.8008,188.5,188.37,17.55403706]
[1736557450398,4.8008,188.5,188.37,20.20863706]
[1736557450602,2.654,188.43,188.37,20.20863706]
[1736557450799,4.8008,188.5,188.37,17.55403706]
[1736557450999,4.8008,188.5,188.34,17.55403706]
[1736557451196,2.655,188.35,188.34,17.55403706]
[1736557451598,17.55403706,188.46,188.31,17.55403706]
[1736557451803,17.55403706,188.46,188.28,1.5263]
[1736557451804,17.55403706,188.46,188.28,17.55403706]
[1736557452003,5.317,188.45,188.31,17.55403706]
[1736557452404,2.6542,188.41,188.31,17.55403706]
[1736557452619,5.317,188.45,188.31,17.55403706]
[1736557453205,5.8,188.48,188.31,20.20943706]
[1736557453410,5.8,188.48,188.34,17.55403706]
[1736557454110,2.6543,188.4,188.34,17.55403706]
[1736557454301,22.85943706,188.52,188.37,17.55403706]
[1736557454501,28.65943706,188.52,188.37,17.55403706]
[1736557454749,2.6542,188.41,188.37,17.55403706]
[1736557455005,28.65943706,188.52,188.37,17.55403706]
[1736557455210,5.317,188.49,188.37,17.55403706]
[1736557456307,10.1178,188.5,188.37,17.55403706]
[1736557456914,2.654,188.43,188.37,17.55403706]
[1736557457210,10.1178,188.5,188.37,17.55403706]
[1736557457412,2.6544,188.4,188.37,17.55403706]
[1736557457707,5.317,188.49,188.37,17.55403706]
[1736557457941,2.6545,188.39,188.37,17.55403706]
[1736557458107,4.8008,188.5,188.37,17.55403706]
[1736557458809,5.317,188.49,188.37,17.55403706]
[1736557459314,2.6546,188.38,188.37,17.55403706]
[1736557460409,5.317,188.49,188.37,17.55403706]
[1736557460610,2.6544,188.39,188.37,17.55403706]
[1736557461613,5.317,188.49,188.37,17.55403706]
[1736557461806,2.6542,188.41,188.37,17.55403706]
[1736557463219,4.8008,188.5,188.37,17.55403706]
[1736557463515,2.6543,188.4,188.37,17.55403706]
[1736557464415,2.6546,188.38,188.37,17.55403706]
[1736557464614,5.317,188.49,188.34,17.55403706]
[1736557464811,5.317,188.48,188.34,17.55403706]
[1736557465116,2.655,188.35,188.34,17.55403706]
[1736557465322,5.317,188.45,188.31,17.55403706]
[1736557465617,23.31403706,188.46,188.31,17.55403706]
[1736557466017,5.317,188.45,188.31,17.55403706]
[1736557466214,23.31403706,188.46,188.31,17.55403706]
[1736557466623,2.6549,188.36,188.31,17.55403706]
[1736557466829,23.31403706,188.46,188.31,17.55403706]
[1736557467027,5.317,188.45,188.31,17.55403706]
[1736557467424,2.6551,188.35,188.31,17.55403706]
[1736557469332,11.0469,188.47,188.31,17.55403706]
[1736557469542,17.54576496,188.47,188.31,17.55403706]
[1736557469934,2.6551,188.34,188.31,17.55403706]
[1736557470532,2.655,188.35,188.31,17.55403706]
[1736557471436,2.6551,188.34,188.31,17.55403706]
[1736557472233,2.655,188.36,188.31,17.55403706]
[1736557472535,2.655,188.36,188.35,17.55403706]
[1736557473436,2.655,188.36,188.35,10.962209]
[1736557478043,5.3069,188.47,188.35,10.962209]
[1736557478243,5.3069,188.47,188.39,10.962209]
[1736557478730,17.47834437,188.49,188.39,10.962209]
[1736557478932,2.6543,188.4,188.39,10.962209]
[1736557487642,2.6547,188.37,188.36,10.962209]
[1736557487840,22.79772496,188.46,188.29,3.3125]
[1736557488040,10.962209,188.43,188.32,10.962209]
[1736557488250,4.7725,188.42,188.32,10.962209]
[1736557488945,2.6553,188.33,188.32,10.962209]
[1736557490342,2.6557,188.3,188.29,10.962209]
[1736557501349,2.6557,188.3,188.29,7.02144973]
[1736557501651,6.51851596,188.41,188.29,7.02144973]
[1736557501854,6.51851596,188.41,188.39,7.02144973]
[1736557502059,2.6543,188.4,188.39,7.02144973]
[1736557503246,4.7725,188.42,188.36,10.96266866]
[1736557503450,2.6547,188.37,188.36,10.96266866]
[1736557504945,2.6544,188.4,188.33,10.96266866]
[1736557505146,4.7725,188.42,188.33,10.96266866]
[1736557506350,2.6551,188.34,188.33,10.96266866]
[1736557507352,2.6556,188.31,188.3,10.96266866]
[1736557516060,5.314,188.4,188.25,2.6564]
[1736557516061,2.6557,188.3,188.27,10.96266866]
[1736557516260,5.314,188.38,188.27,10.96266866]
[1736557516457,10.96266866,188.36,188.24,10.96266866]
[1736557516761,5.314,188.35,188.24,10.96266866]
[1736557517163,10.96266866,188.36,188.24,10.96266866]
[1736557517164,5.314,188.33,188.24,10.96266866]
[1736557517476,2.6556,188.31,188.24,10.96266866]
[1736557517759,5.314,188.33,188.24,10.96266866]
[1736557518157,2.6564,188.26,188.24,10.96266866]
[1736557518359,4.7315,188.34,188.24,10.96266866]
[1736557518560,4.7315,188.34,188.27,10.96266866]
[1736557519263,2.6557,188.31,188.27,10.96266866]
[1736557519457,4.7315,188.34,188.27,10.96266866]
[1736557520059,2.6557,188.3,188.27,10.96266866]
[1736557520762,2.6555,188.32,188.27,10.96266866]
[1736557521065,2.6555,188.32,188.3,10.96266866]
[1736557523260,7.02258604,188.36,188.3,7.02258604]
[1736557523760,7.02258604,188.34,188.17,4.8633]
[1736557523966,5.314,188.38,188.25,7.02258604]
[1736557523967,7.02258604,188.32,188.25,7.02258604]
[1736557524266,2.6562,188.26,188.25,7.02258604]
[1736557524856,2.6565,188.24,188.23,7.02258604]
[1736557525094,8.54178604,188.3,188.23,7.02258604]
[1736557525265,1.5192,188.3,188.2,10.98085606]
[1736557525461,2.657,188.21,188.2,10.98085606]
[1736557526968,2.6565,188.24,188.2,10.98085606]
[1736557527267,1.5192,188.3,188.2,10.98085606]
[1736557529067,2.6564,188.25,188.2,10.98085606]
[1736557530379,2.6566,188.24,188.2,10.98085606]
[1736557531468,1.5192,188.3,188.2,10.98085606]
[1736557531768,2.6569,188.22,188.2,10.98085606]
[1736557533264,2.657,188.21,188.2,10.98085606]
[1736557533661,1.5192,188.3,188.2,10.98085606]
[1736557533967,2.6566,188.24,188.23,10.98085606]
[1736557535370,2.657,188.22,188.19,10.98085606]
[1736557535566,1.5192,188.3,188.19,10.98085606]
[1736557536068,2.6565,188.25,188.2,2.6571]
[1736557536268,1.5192,188.3,188.22,10.98085606]
[1736557537165,2.6566,188.24,188.22,10.98085606]
[1736557541070,2.6567,188.23,188.22,10.98085606]
[1736557542475,2.6566,188.24,188.22,10.98085606]
[1736557543179,8.5902,188.31,188.22,10.98085606]
[1736557543377,2.6567,188.23,188.22,10.98085606]
[1736557545677,2.6565,188.25,188.22,13.63765606]
[1736557545880,3.2762,188.31,188.22,13.63765606]
[1736557546180,2.6564,188.25,188.22,13.63765606]
[1736557547174,3.2762,188.31,188.22,10.98085606]
[1736557547377,2.6567,188.23,188.19,2.6571]
[1736557548982,2.6567,188.23,188.2,2.657]
[1736557549178,2.6563,188.26,188.22,7.02602806]
[1736557549482,2.6563,188.26,188.25,7.02602806]
[1736557550081,2.6571,188.2,188.16,1.5287]
[1736557550275,7.02602806,188.29,188.19,7.02602806]
[1736557550471,3.2762,188.31,188.26,7.02602806]
[1736557550676,2.6561,188.27,188.26,7.02602806]
[1736557559093,2.6564,188.26,188.2,2.657]
[1736557559292,2.6564,188.26,188.25,7.02602806]
[1736557560996,7.02602806,188.3,188.23,7.02602806]
[1736557561294,7.02602806,188.28,188.21,7.02602806]
[1736557562088,2.6568,188.22,188.21,7.02602806]
[1736557571797,7.02602806,188.26,188.19,7.02602806]
[1736557571999,2.6571,188.2,188.19,7.02602806]
[1736557573496,2.6575,188.17,188.13,2.658]
[1736557573695,2.6575,188.17,188.16,7.02602806]
[1736557583010,7.02602806,188.22,188.09,3.147]
[1736557583203,2.6579,188.15,188.11,2.6584]
[1736557583408,2.6579,188.15,188.14,7.02602806]
[1736557583608,7.02602806,188.22,188.07,1.6415]
[1736557583812,2.6582,188.13,188.09,2.6586]
[1736557587110,1.593,188.23,188.12,7.02602806]
[1736557587312,1.593,188.23,188.18,7.02602806]
[1736557589213,2.6572,188.19,188.18,7.02602806]
[1736557591115,2.6576,188.17,188.16,7.02602806]
[1736557592717,7.02602806,188.2,188.14,7.02602806]
[1736557594115,2.6578,188.15,188.14,7.02602806]
[1736557595116,2.6582,188.13,188.12,7.02602806]
[1736557596022,2.6582,188.13,188.08,2.6587]
[1736557596268,2.6583,188.12,188.11,7.02602806]
[1736557596918,7.02602806,188.15,188.09,7.02602806]
[1736557597122,7.02602806,188.15,188.08,7.02602806]
[1736557598221,2.6588,188.09,188.08,7.02602806]
[1736557602658,4.8098,188.16,188.08,7.02602806]
[1736557602827,4.8098,188.16,188.12,7.02602806]
[1736557603330,2.6578,188.15,188.12,7.02602806]
[1736557603532,3.2223,188.16,188.14,7.02602806]
[1736557603733,3.2221,188.21,188.14,7.02602806]
[1736557603930,3.2221,188.21,188.02,1.6261]
[1736557603931,3.2221,188.21,188.17,7.02602806]
[1736557605124,2.6574,188.18,188.17,7.02602806]
[1736557612040,2.6575,188.17,188.15,7.02602806]
[1736557614844,2.6577,188.16,188.15,7.02602806]
[1736557615140,7.02602806,188.19,188.1,8.1185]
[1736557615344,2.658,188.14,188.13,7.02602806]
[1736557615943,2.6582,188.13,188.11,7.02602806]
[1736557618053,7.02602806,188.19,188.11,7.02602806]
[1736557618253,2.6582,188.12,188.11,7.02602806]
[1736557618752,2.6582,188.12,188.05,5.44]
[1736557618753,2.6586,188.1,188.05,5.44]
[1736557618952,2.6586,188.1,188.09,7.02602806]
[1736557621550,7.02602806,188.13,188.06,7.02602806]
[1736557622146,8.61112806,188.13,188.06,7.02602806]
[1736557623155,13.92512806,188.13,187.97,4.8879]
[1736557623451,2.6594,188.04,188.03,7.02602806]
[1736557624351,7.02602806,188.1,188.03,7.02602806]
[1736557624659,2.659,188.07,188.05,7.02602806]
[1736557625061,7.02602806,188.12,187.98,5.44]
[1736557625254,2.6593,188.05,188.04,7.02602806]
[1736557627163,7.02602806,188.1,188.04,7.02602806]
[1736557627961,2.659,188.07,188.04,7.02602806]
[1736557628558,7.02602806,188.1,188.04,7.02602806]
[1736557630089,2.6592,188.05,188.04,7.02602806]
[1736557631366,2.6594,188.04,188.02,7.02602806]
[1736557631865,2.6597,188.02,187.97,7.4706]
[1736557632067,2.6597,188.02,188.01,7.02602806]
[1736557632462,2.6595,188.03,188.01,7.02602806]
[1736557633569,2.6596,188.02,188.01,7.02602806]
[1736557634165,2.6596,188.02,187.97,2.6603]
[1736557634467,2.6598,188.01,188.0,7.02602806]
[1736557643269,2.6598,188.01,187.98,2.6602]
[1736557643476,2.6598,188.01,188.0,7.02602806]
[1736557644674,2.6598,188.01,187.98,2.6602]
[1736557644878,2.6598,188.01,188.0,7.02602806]
[1736557651179,2.6597,188.02,188.0,7.02602806]
[1736557655477,3.2431,188.07,187.96,33.45191201]
[1736557655681,7.02602806,188.06,188.0,7.02602806]
[1736557655874,8.56692806,188.06,188.0,7.02602806]
[1736557656282,2.6598,188.01,188.0,7.02602806]
[1736557664687,8.56692806,188.06,187.93,5.42]
[1736557664883,7.02602806,188.0,187.87,7.29319697]
[1736557665079,7.02602806,187.98,187.91,7.02602806]
[1736557665385,7.02602806,187.98,187.86,10.1456]
[1736557665587,7.02602806,187.98,187.91,7.02602806]
[1736557665986,2.6609,187.94,187.89,2.6615]
[1736557666190,7.02602806,187.98,187.91,7.02602806]
[1736557667885,7.02602806,187.96,187.9,7.02602806]
[1736557668234,7.02602806,187.94,187.81,4.8808]
[1736557668388,7.02602806,187.94,187.82,2.6623]
[1736557668585,7.02602806,187.92,187.86,7.02602806]
[1736557668785,2.6616,187.89,187.86,7.02602806]
[1736557669089,2.6616,187.89,187.81,3.2986]
[1736557669289,2.6616,187.88,187.87,7.02602806]
[1736557670584,7.02602806,187.94,187.87,7.02602806]
[1736557671992,2.6615,187.9,187.87,7.02602806]
[1736557672292,7.02602806,187.94,187.87,7.02602806]
[1736557673785,2.6616,187.89,187.87,7.02602806]
[1736557675390,2.6616,187.89,187.85,7.02602806]
[1736557677095,2.6613,187.91,187.87,7.02602806]
[1736557677291,7.02602806,187.94,187.87,7.02602806]
[1736557677998,2.6615,187.9,187.87,7.02602806]
[1736557678399,7.02602806,187.92,187.85,7.02602806]
[1736557679502,7.02602806,187.9,187.82,7.02602806]
[1736557679834,2.6622,187.85,187.82,7.02602806]
[1736557682500,2.6623,187.84,187.82,7.02602806]
[1736557685796,3.1944,187.89,187.82,7.02602806]
[1736557686004,2.662,187.86,187.84,7.02602806]
[1736557687309,2.6618,187.87,187.84,7.02602806]
[1736557687508,7.02602806,187.93,187.86,7.02602806]
[1736557687809,7.02602806,187.93,187.88,7.02602806]
[1736557688007,2.6614,187.9,187.88,7.02602806]
[1736557688208,7.02602806,187.93,187.88,7.02602806]
[1736557689209,2.6615,187.89,187.88,7.02602806]
[1736557689407,7.02602806,187.93,187.77,33.28170008]
[1736557689408,7.02602806,187.93,187.86,7.02602806]
[1736557689708,2.6618,187.88,187.86,7.02602806]
[1736557690299,7.02602806,187.93,187.86,7.02602806]
[1736557690504,7.02602806,187.89,187.83,7.02602806]
[1736557690909,2.6617,187.88,187.83,7.02602806]
[1736557691107,7.02602806,187.87,187.76,3.1453]
[1736557691304,10.21362806,187.87,187.8,7.02602806]
[1736557691811,2.6626,187.82,187.8,7.02602806]
[1736557692213,10.21362806,187.87,187.8,7.02602806]
[1736557692409,2.6626,187.81,187.8,7.02602806]
[1736557693612,7.02602806,187.86,187.8,7.02602806]
[1736557693816,10.21362806,187.87,187.8,7.02602806]
[1736557694010,3.1876,187.87,187.84,7.02602806]
[1736557694413,3.1876,187.87,187.82,7.02602806]
[1736557695111,2.662,187.85,187.82,7.02602806]
[1736557695318,2.662,187.85,187.76,1.6282]
[1736557695319,10.21362806,187.87,187.8,7.02602806]
[1736557695722,2.6626,187.82,187.76,1.6282]
[1736557695922,7.02602806,187.85,187.79,7.02602806]
[1736557696420,7.02602806,187.83,187.75,2.6634]
[1736557696735,7.02602806,187.83,187.77,7.02602806]
[1736557697318,7.02602806,187.83,187.76,7.02602806]
[1736557698320,2.663,187.79,187.76,7.02602806]
[1736557701219,7.02602806,187.83,187.76,7.02602806]
[1736557701419,2.6631,187.78,187.76,7.02602806]
[1736557705227,2.6624,187.83,187.77,2.6631]
[1736557705426,2.6624,187.83,187.8,7.02602806]
[1736557705627,2.6624,187.83,187.82,7.02602806]
[1736557705831,2.6622,187.84,187.82,7.02602806]
[1736557706720,7.02602806,187.88,187.81,7.02602806]
[1736557706925,2.6624,187.83,187.81,7.02602806]
[1736557708233,7.02602806,187.88,187.81,7.02602806]
[1736557708433,2.6625,187.82,187.81,7.02602806]
[1736557718436,2.6627,187.81,187.79,7.02602806]
[1736557720738,7.02602806,187.84,187.77,7.02602806]
[1736557721741,2.663,187.78,187.77,7.02602806]
[1736557724439,8.56852806,187.85,187.77,7.02602806]
[1736557725036,2.6628,187.8,187.77,7.02602806]
[1736557727044,2.6629,187.79,187.77,7.02602806]
[1736557735048,2.663,187.78,187.77,7.02602806]
[1736557740052,7.02602806,187.81,187.7,1.5444]
[1736557740259,7.02602806,187.81,187.73,7.02602806]
[1736557740558,2.6636,187.75,187.73,7.02602806]
[1736557746160,1.5218,187.83,187.73,7.02602806]
[1736557746359,8.08307944,187.84,187.79,7.02602806]
[1736557746758,2.6627,187.81,187.79,7.02602806]
[1736557748461,1.5465,187.84,187.72,2.6638]
[1736557748653,7.02602806,187.83,187.77,7.02602806]
[1736557749462,2.6629,187.79,187.77,7.02602806]
[1736557750055,2.663,187.78,187.77,7.02602806]
[1736557757766,2.6632,187.77,187.75,7.02602806]
[1736557758166,7.02602806,187.81,187.75,7.02602806]
[1736557758365,7.02602806,187.81,187.73,7.02602806]
[1736557759263,2.6633,187.76,187.73,7.02602806]
[1736557760466,2.6638,187.73,187.67,1.6143]
[1736557760666,2.6638,187.73,187.7,7.02602806]
[1736557761463,2.6639,187.72,187.7,7.02602806]
[1736557761967,7.02602806,187.77,187.7,7.02602806]
[1736557762167,2.664,187.71,187.7,7.02602806]
[1736557764873,1.5929,187.82,187.7,9.69022806]
[1736557765166,7.02602806,187.78,187.7,9.69022806]
[1736557765566,2.6637,187.74,187.7,9.69022806]
[1736557765762,7.02602806,187.78,187.7,7.02602806]